[Event "*** Titled Tuesday Blitz"]
[Site "Chess.com"]
[Date "2020.10.20"]
[Round "1"]
[White "aloe_normansen"]
[Black "GregShahade"]
[Result "1/2-1/2"]
[WhiteElo "2339"]
[BlackElo "2661"]
[TimeControl "180+1"]
[EndTime "10:07:36 PDT"]
[Termination "Game drawn by repetition"]

1. e4 {[%clk 0:03:00.9]} 1... e5 {[%clk 0:02:59.4]} 2. Nf3 {[%clk 0:03:00.8]}
2... Nc6 {[%clk 0:02:59.3]} 3. d4 {[%clk 0:03:00]} 3... exd4 {[%clk 0:02:59]} 4.
Nxd4 {[%clk 0:03:00.2]} 4... Nf6 {[%clk 0:02:59.7]} 5. Nxc6 {[%clk 0:02:57.5]}
5... bxc6 {[%clk 0:03:00.6]} 6. e5 {[%clk 0:02:55.8]} 6... Qe7 {[%clk 0:03:01]}
7. Qe2 {[%clk 0:02:55.3]} 7... Nd5 {[%clk 0:03:01.2]} 8. c4 {[%clk 0:02:54.4]}
8... Ba6 {[%clk 0:03:01.5]} 9. h4 {[%clk 0:02:52.8]} 9... O-O-O {[%clk 0:02:59]}
10. b3 {[%clk 0:02:35.7]} 10... g6 {[%clk 0:02:50.7]} 11. Bb2 {[%clk 0:02:03.7]}
11... Bg7 {[%clk 0:02:48.3]} 12. Nd2 {[%clk 0:01:59.5]} 12... Rhe8 {[%clk
0:02:41.8]} 13. Qe4 {[%clk 0:01:39.7]} 13... f5 {[%clk 0:02:06.1]} 14. Qf3
{[%clk 0:01:30.9]} 14... Bxe5 {[%clk 0:01:58.4]} 15. O-O-O {[%clk 0:01:29.3]}
15... Bxb2+ {[%clk 0:01:50]} 16. Kxb2 {[%clk 0:01:30.2]} 16... Qf6+ {[%clk
0:01:45.9]} 17. Kc2 {[%clk 0:01:29.1]} 17... Nb4+ {[%clk 0:01:37.3]} 18. Kb1
{[%clk 0:01:28.6]} 18... f4 {[%clk 0:01:30.4]} 19. g4 {[%clk 0:01:06.5]} 19...
Bb7 {[%clk 0:01:22.7]} 20. Bg2 {[%clk 0:00:55.9]} 20... d5 {[%clk 0:00:59.1]}
21. Rhe1 {[%clk 0:00:43.1]} 21... Rxe1 {[%clk 0:00:55]} 22. Rxe1 {[%clk
0:00:42.8]} 22... Qd4 {[%clk 0:00:54.8]} 23. Qe2 {[%clk 0:00:21.3]} 23... Nd3
{[%clk 0:00:35.5]} 24. Nf3 {[%clk 0:00:20.1]} 24... Qc3 {[%clk 0:00:35.7]} 25.
Rd1 {[%clk 0:00:19.7]} 25... dxc4 {[%clk 0:00:36.1]} 26. bxc4 {[%clk 0:00:19.8]}
26... Qb4+ {[%clk 0:00:35]} 27. Ka1 {[%clk 0:00:19.6]} 27... Qc3+ {[%clk
0:00:34.7]} 28. Kb1 {[%clk 0:00:19.1]} 28... c5 {[%clk 0:00:31.5]} 29. Ne1
{[%clk 0:00:15.3]} 29... Bxg2 {[%clk 0:00:24.6]} 30. Rxd3 {[%clk 0:00:07.8]}
30... Rxd3 {[%clk 0:00:21.5]} 31. Nxd3 {[%clk 0:00:08.7]} 31... Qd4 {[%clk
0:00:10.1]} 32. f3 {[%clk 0:00:07.4]} 32... Bh1 {[%clk 0:00:06.4]} 33. Qe8+
{[%clk 0:00:06.5]} 33... Qd8 {[%clk 0:00:06.3]} 34. Qe6+ {[%clk 0:00:06.3]}
34... Kb8 {[%clk 0:00:05.2]} 35. Ne5 {[%clk 0:00:05.9]} 35... Qd1+ {[%clk
0:00:04.9]} 36. Kb2 {[%clk 0:00:06.2]} 36... Qd2+ {[%clk 0:00:05.5]} 37. Kb1
{[%clk 0:00:06.3]} 37... Qb4+ {[%clk 0:00:05.8]} 38. Kc2 {[%clk 0:00:06]} 38...
Qa4+ {[%clk 0:00:06.3]} 39. Kb2 {[%clk 0:00:06.1]} 39... Qb4+ {[%clk 0:00:06.5]}
40. Kc2 {[%clk 0:00:06.4]} 40... Qa4+ {[%clk 0:00:06.9]} 41. Kb2 {[%clk
0:00:06.8]} 41... Qb4+ {[%clk 0:00:07.4]} 42. Kc2 {[%clk 0:00:07.3]} 1/2-1/2

[Event "*** Titled Tuesday Blitz"]
[Site "Chess.com"]
[Date "2020.10.20"]
[Round "1"]
[White "PavelShkapenko"]
[Black "zmeeed67"]
[Result "1-0"]
[WhiteElo "2703"]
[BlackElo "2351"]
[TimeControl "180+1"]
[EndTime "10:07:37 PDT"]
[Termination "PavelShkapenko won on time"]

1. e4 {[%clk 0:02:41.6]} 1... Nc6 {[%clk 0:02:59.4]} 2. d4 {[%clk 0:02:39.8]}
2... d6 {[%clk 0:02:59]} 3. d5 {[%clk 0:02:18.3]} 3... Nb8 {[%clk 0:02:50.7]} 4.
c4 {[%clk 0:02:17.3]} 4... Nf6 {[%clk 0:02:50.3]} 5. Nc3 {[%clk 0:02:17.3]} 5...
g6 {[%clk 0:02:50.3]} 6. Be2 {[%clk 0:02:14.9]} 6... Bg7 {[%clk 0:02:49.7]} 7.
Nf3 {[%clk 0:02:15.4]} 7... O-O {[%clk 0:02:48.8]} 8. O-O {[%clk 0:02:15.4]}
8... c6 {[%clk 0:02:47.3]} 9. dxc6 {[%clk 0:02:08]} 9... Nxc6 {[%clk 0:02:44]}
10. h3 {[%clk 0:02:08.2]} 10... Bd7 {[%clk 0:02:43]} 11. Be3 {[%clk 0:02:07.9]}
11... a6 {[%clk 0:02:36.1]} 12. Rc1 {[%clk 0:02:02.8]} 12... Qc7 {[%clk
0:02:33.9]} 13. Nd5 {[%clk 0:02:02.4]} 13... Qd8 {[%clk 0:02:29.4]} 14. Bb6
{[%clk 0:02:01.9]} 14... Qc8 {[%clk 0:02:10.8]} 15. Bd3 {[%clk 0:02:01.9]} 15...
Re8 {[%clk 0:02:09.6]} 16. Re1 {[%clk 0:01:59.8]} 16... Nh5 {[%clk 0:01:55.7]}
17. Nc7 {[%clk 0:01:56.4]} 17... Bxb2 {[%clk 0:01:43.3]} 18. Rb1 {[%clk
0:01:56.5]} 18... Bg7 {[%clk 0:01:40.8]} 19. Nxe8 {[%clk 0:01:52]} 19... Qxe8
{[%clk 0:01:34.3]} 20. c5 {[%clk 0:01:51.7]} 20... dxc5 {[%clk 0:01:24]} 21.
Bxc5 {[%clk 0:01:51.6]} 21... b5 {[%clk 0:01:24]} 22. Bf1 {[%clk 0:01:41.1]}
22... Nf4 {[%clk 0:01:20.5]} 23. Be3 {[%clk 0:01:40.9]} 23... Ne6 {[%clk
0:01:15.2]} 24. Qd2 {[%clk 0:01:41]} 24... Ne5 {[%clk 0:01:04.4]} 25. Nxe5
{[%clk 0:01:37.4]} 25... Bxe5 {[%clk 0:01:03.7]} 26. Qd5 {[%clk 0:01:13.9]}
26... Bg7 {[%clk 0:00:50.1]} 27. Rbc1 {[%clk 0:01:12.2]} 27... b4 {[%clk
0:00:19.1]} 28. Bd2 {[%clk 0:01:01.9]} 28... a5 {[%clk 0:00:16.5]} 29. Red1
{[%clk 0:00:57.9]} 29... Ba4 {[%clk 0:00:16.2]} 30. Re1 {[%clk 0:00:55.6]} 30...
Rd8 {[%clk 0:00:16.3]} 31. Qxa5 {[%clk 0:00:55.7]} 31... Rxd2 {[%clk 0:00:14.6]}
32. Re2 {[%clk 0:00:54.2]} 32... Rxe2 {[%clk 0:00:11]} 33. Bxe2 {[%clk
0:00:54.4]} 33... Nd4 {[%clk 0:00:10.1]} 34. Ba6 {[%clk 0:00:54]} 34... Bd7
{[%clk 0:00:09.6]} 35. Qxb4 {[%clk 0:00:52.7]} 35... Bf6 {[%clk 0:00:09.3]} 36.
Rc7 {[%clk 0:00:40.4]} 36... Be6 {[%clk 0:00:08.8]} 37. Rb7 {[%clk 0:00:36.5]}
37... Kg7 {[%clk 0:00:08.6]} 38. Qc5 {[%clk 0:00:30.7]} 38... Qa8 {[%clk
0:00:06.3]} 39. Qa7 {[%clk 0:00:17.5]} 39... Qd8 {[%clk 0:00:05]} 40. Qc5 {[%clk
0:00:16.7]} 40... Qa8 {[%clk 0:00:01.2]} 41. Qa7 {[%clk 0:00:12.5]} 1-0

[Event "*** Titled Tuesday Blitz"]
[Site "Chess.com"]
[Date "2020.10.20"]
[Round "1"]
[White "mirceaparligras"]
[Black "allvim"]
[Result "1-0"]
[WhiteElo "2659"]
[BlackElo "2322"]
[TimeControl "180+1"]
[EndTime "10:07:37 PDT"]
[Termination "mirceaparligras won by resignation"]

1. d4 {[%clk 0:03:00.9]} 1... Nf6 {[%clk 0:02:59.8]} 2. c4 {[%clk 0:03:00.5]}
2... g6 {[%clk 0:02:59.8]} 3. Nc3 {[%clk 0:03:00]} 3... d5 {[%clk 0:02:58.4]} 4.
cxd5 {[%clk 0:02:57]} 4... Nxd5 {[%clk 0:02:59.3]} 5. e4 {[%clk 0:02:57.3]} 5...
Nxc3 {[%clk 0:02:59.7]} 6. bxc3 {[%clk 0:02:57.9]} 6... Bg7 {[%clk 0:03:00.6]}
7. Nf3 {[%clk 0:02:54.2]} 7... c5 {[%clk 0:03:00.5]} 8. h3 {[%clk 0:02:53.5]}
8... O-O {[%clk 0:03:00.6]} 9. Be3 {[%clk 0:02:52.3]} 9... Nc6 {[%clk
0:02:59.8]} 10. Be2 {[%clk 0:02:50.7]} 10... Qa5 {[%clk 0:02:58.1]} 11. O-O
{[%clk 0:02:49.4]} 11... cxd4 {[%clk 0:02:46.7]} 12. cxd4 {[%clk 0:02:48.3]}
12... b6 {[%clk 0:02:47.6]} 13. d5 {[%clk 0:02:33.4]} 13... Ne5 {[%clk
0:02:46.3]} 14. Nxe5 {[%clk 0:02:24.7]} 14... Bxe5 {[%clk 0:02:47.2]} 15. Bd4
{[%clk 0:02:22.8]} 15... Bxd4 {[%clk 0:02:42]} 16. Qxd4 {[%clk 0:02:23.7]} 16...
Ba6 {[%clk 0:02:42.7]} 17. Bxa6 {[%clk 0:02:16.8]} 17... Qxa6 {[%clk 0:02:43.6]}
18. e5 {[%clk 0:02:11.1]} 18... Rfd8 {[%clk 0:02:41.2]} 19. Rfd1 {[%clk
0:02:06.5]} 19... Rac8 {[%clk 0:02:35.5]} 20. a4 {[%clk 0:01:51.3]} 20... Rc5
{[%clk 0:02:22.9]} 21. d6 {[%clk 0:01:43.1]} 21... exd6 {[%clk 0:02:23.8]} 22.
exd6 {[%clk 0:01:42.7]} 22... Rc6 {[%clk 0:02:15]} 23. Qf6 {[%clk 0:01:37.2]}
23... Rd7 {[%clk 0:02:13.3]} 24. Re1 {[%clk 0:01:08.4]} 24... Qc8 {[%clk
0:02:10]} 25. Rad1 {[%clk 0:01:01.2]} 25... Qd8 {[%clk 0:00:50]} 26. Re7 {[%clk
0:00:50.3]} 26... Rxe7 {[%clk 0:00:38.5]} 27. Qxe7 {[%clk 0:00:50.2]} 27... Rc8
{[%clk 0:00:31.4]} 28. Qxa7 {[%clk 0:00:48.4]} 28... Rc6 {[%clk 0:00:26.9]} 29.
Qe7 {[%clk 0:00:38.8]} 29... Rc8 {[%clk 0:00:25.4]} 30. Qb7 {[%clk 0:00:32.4]}
30... Rb8 {[%clk 0:00:20.6]} 31. Qd5 {[%clk 0:00:27.6]} 31... Qd7 {[%clk
0:00:21.1]} 32. h4 {[%clk 0:00:14.7]} 32... h5 {[%clk 0:00:19.4]} 33. Qb5 {[%clk
0:00:13.2]} 33... Qg4 {[%clk 0:00:14.4]} 34. Qd5 {[%clk 0:00:10.7]} 34... Qd7
{[%clk 0:00:13.6]} 35. Qd4 {[%clk 0:00:10.8]} 35... b5 {[%clk 0:00:11.2]} 36.
axb5 {[%clk 0:00:09.3]} 36... Rxb5 {[%clk 0:00:12.1]} 37. g3 {[%clk 0:00:09.8]}
37... Rf5 {[%clk 0:00:06.6]} 38. Ra1 {[%clk 0:00:07.9]} 38... Qc6 {[%clk
0:00:02.3]} 39. d7 {[%clk 0:00:06]} 39... Rd5 {[%clk 0:00:02.9]} 40. Qe4 {[%clk
0:00:04.2]} 40... Rd1+ {[%clk 0:00:02]} 41. Rxd1 {[%clk 0:00:03.9]} 1-0

[Event "*** Titled Tuesday Blitz"]
[Site "Chess.com"]
[Date "2020.10.20"]
[Round "1"]
[White "DenishevM"]
[Black "chesslh19"]
[Result "1-0"]
[WhiteElo "2538"]
[BlackElo "2216"]
[TimeControl "180+1"]
[EndTime "10:07:37 PDT"]
[Termination "DenishevM won on time"]

1. d4 {[%clk 0:03:00.9]} 1... Nf6 {[%clk 0:02:58.8]} 2. Nf3 {[%clk 0:03:00]}
2... d5 {[%clk 0:02:57.9]} 3. Bg5 {[%clk 0:03:00.1]} 3... e6 {[%clk 0:02:54.8]}
4. e3 {[%clk 0:02:59.5]} 4... Be7 {[%clk 0:02:54]} 5. Bd3 {[%clk 0:02:59.2]}
5... O-O {[%clk 0:02:53.6]} 6. O-O {[%clk 0:02:58.9]} 6... Nbd7 {[%clk
0:02:54.1]} 7. c3 {[%clk 0:02:58.7]} 7... c5 {[%clk 0:02:53.7]} 8. Nbd2 {[%clk
0:02:58.7]} 8... b6 {[%clk 0:02:51.3]} 9. Qe2 {[%clk 0:02:58.7]} 9... Bb7 {[%clk
0:02:50.8]} 10. Rad1 {[%clk 0:02:57.2]} 10... Re8 {[%clk 0:02:49]} 11. Rfe1
{[%clk 0:02:51.2]} 11... h6 {[%clk 0:02:29.3]} 12. Bh4 {[%clk 0:02:47.9]} 12...
Ne4 {[%clk 0:02:26.5]} 13. Bg3 {[%clk 0:02:42.9]} 13... Ndf6 {[%clk 0:02:03.4]}
14. Ne5 {[%clk 0:02:40.4]} 14... Nd7 {[%clk 0:01:54]} 15. Nxd7 {[%clk
0:02:26.1]} 15... Qxd7 {[%clk 0:01:54.9]} 16. dxc5 {[%clk 0:02:26.6]} 16... Nxc5
{[%clk 0:01:47.3]} 17. Bc2 {[%clk 0:02:26.7]} 17... Qc6 {[%clk 0:01:34.4]} 18.
Nf3 {[%clk 0:02:21]} 18... Ne4 {[%clk 0:01:30.4]} 19. Ne5 {[%clk 0:02:08]} 19...
Nxg3 {[%clk 0:01:14.7]} 20. hxg3 {[%clk 0:02:05.9]} 20... Qc7 {[%clk 0:01:14.4]}
21. Qd3 {[%clk 0:01:58.1]} 21... f5 {[%clk 0:01:04.1]} 22. Ng6 {[%clk
0:01:51.5]} 22... Bf6 {[%clk 0:01:03.8]} 23. Nf4 {[%clk 0:01:41.4]} 23... Rad8
{[%clk 0:00:53.7]} 24. g4 {[%clk 0:01:28.9]} 24... e5 {[%clk 0:00:42.7]} 25. Nh5
{[%clk 0:01:18.4]} 25... e4 {[%clk 0:00:42.7]} 26. Nxf6+ {[%clk 0:01:15.8]}
26... gxf6 {[%clk 0:00:43.6]} 27. Qe2 {[%clk 0:01:16.4]} 27... f4 {[%clk
0:00:30.3]} 28. Bb3 {[%clk 0:01:01.6]} 28... Re7 {[%clk 0:00:21.8]} 29. Rd4
{[%clk 0:00:48.6]} 29... Kh8 {[%clk 0:00:17.7]} 30. Red1 {[%clk 0:00:47.3]}
30... Red7 {[%clk 0:00:13.9]} 31. Qd2 {[%clk 0:00:43.5]} 31... Qe5 {[%clk
0:00:10.2]} 32. exf4 {[%clk 0:00:42.7]} 32... Qe6 {[%clk 0:00:07.9]} 33. Qe2
{[%clk 0:00:31.2]} 33... Rg8 {[%clk 0:00:04.8]} 34. f3 {[%clk 0:00:29.6]} 34...
Re7 {[%clk 0:00:03.3]} 35. fxe4 {[%clk 0:00:26.9]} 35... Qxg4 {[%clk 0:00:03.1]}
36. Qxg4 {[%clk 0:00:25.8]} 36... Rxg4 {[%clk 0:00:04]} 37. Bxd5 {[%clk
0:00:16.6]} 37... Bxd5 {[%clk 0:00:03.5]} 38. Rxd5 {[%clk 0:00:16.7]} 38... Rxe4
{[%clk 0:00:03.5]} 39. Rd8+ {[%clk 0:00:17.4]} 39... Kg7 {[%clk 0:00:03.4]} 40.
R1d7+ {[%clk 0:00:17.6]} 40... Kg6 {[%clk 0:00:03.7]} 41. Rg8+ {[%clk
0:00:11.7]} 41... Kf5 {[%clk 0:00:03.8]} 42. Rxg4 {[%clk 0:00:12.4]} 42... Kxg4
{[%clk 0:00:03]} 43. Rxa7 {[%clk 0:00:13]} 1-0

[Event "*** Titled Tuesday Blitz"]
[Site "Chess.com"]
[Date "2020.10.20"]
[Round "1"]
[White "Shivagami"]
[Black "FMJoseHerrera"]
[Result "1-0"]
[WhiteElo "2246"]
[BlackElo "2540"]
[TimeControl "180+1"]
[EndTime "10:07:38 PDT"]
[Termination "Shivagami won on time"]

1. d4 {[%clk 0:02:52.7]} 1... Nf6 {[%clk 0:02:59.4]} 2. c4 {[%clk 0:02:51.7]}
2... c5 {[%clk 0:02:59]} 3. d5 {[%clk 0:02:49]} 3... b5 {[%clk 0:02:59.1]} 4.
Qc2 {[%clk 0:02:47.7]} 4... g6 {[%clk 0:02:58.9]} 5. e4 {[%clk 0:02:46.4]} 5...
Bg7 {[%clk 0:02:58.9]} 6. cxb5 {[%clk 0:02:45.5]} 6... a6 {[%clk 0:02:58.2]} 7.
a4 {[%clk 0:02:45]} 7... O-O {[%clk 0:02:56.7]} 8. f4 {[%clk 0:02:43.2]} 8... e6
{[%clk 0:02:50.6]} 9. dxe6 {[%clk 0:02:37.9]} 9... fxe6 {[%clk 0:02:50.5]} 10.
Nf3 {[%clk 0:02:35.4]} 10... d5 {[%clk 0:02:49.2]} 11. e5 {[%clk 0:02:32.5]}
11... Nh5 {[%clk 0:02:47.2]} 12. g3 {[%clk 0:02:27.8]} 12... Nd7 {[%clk
0:02:37.6]} 13. Nc3 {[%clk 0:02:26.7]} 13... Bb7 {[%clk 0:02:37]} 14. Bh3 {[%clk
0:02:24.3]} 14... Qe7 {[%clk 0:02:26.6]} 15. Ng5 {[%clk 0:02:20.5]} 15... axb5
{[%clk 0:02:20.7]} 16. Nxb5 {[%clk 0:02:06.5]} 16... d4 {[%clk 0:02:19.9]} 17.
O-O {[%clk 0:01:58.3]} 17... Ra6 {[%clk 0:02:01.4]} 18. Nc7 {[%clk 0:01:49.6]}
18... Nxe5 {[%clk 0:01:59.2]} 19. Nxa6 {[%clk 0:01:43.1]} 19... Bxa6 {[%clk
0:01:57.4]} 20. Re1 {[%clk 0:01:23.8]} 20... Qxg5 {[%clk 0:01:46.5]} 21. Bxe6+
{[%clk 0:01:14.7]} 21... Kh8 {[%clk 0:01:44.9]} 22. fxg5 {[%clk 0:00:39.9]}
22... Nf3+ {[%clk 0:01:44.3]} 23. Kf2 {[%clk 0:00:40.2]} 23... d3 {[%clk
0:01:01.5]} 24. Qd1 {[%clk 0:00:16.8]} 24... Bb7 {[%clk 0:00:45.1]} 25. Bf4
{[%clk 0:00:15.9]} 25... Nxe1 {[%clk 0:00:40.9]} 26. Kxe1 {[%clk 0:00:10.1]}
26... Nxf4 {[%clk 0:00:41.2]} 27. gxf4 {[%clk 0:00:10.4]} 27... Rxf4 {[%clk
0:00:42.1]} 28. Qxd3 {[%clk 0:00:10.3]} 28... Bd4 {[%clk 0:00:35.9]} 29. Qb5
{[%clk 0:00:05.5]} 29... Re4+ {[%clk 0:00:16.8]} 30. Kd2 {[%clk 0:00:05.5]}
30... Rxe6 {[%clk 0:00:17.2]} 31. Qxb7 {[%clk 0:00:05.1]} 31... Re8 {[%clk
0:00:15.6]} 32. Qc6 {[%clk 0:00:04.8]} 32... Rd8 {[%clk 0:00:15.6]} 33. Kc2
{[%clk 0:00:05.2]} 33... Bg7 {[%clk 0:00:14.9]} 34. a5 {[%clk 0:00:05.3]} 34...
Rb8 {[%clk 0:00:14.2]} 35. Ra2 {[%clk 0:00:04.7]} 35... Bd4 {[%clk 0:00:10.8]}
36. a6 {[%clk 0:00:05]} 36... Rf8 {[%clk 0:00:10.8]} 37. a7 {[%clk 0:00:04.7]}
37... Rf2+ {[%clk 0:00:11.7]} 38. Kd3 {[%clk 0:00:05.1]} 1-0

[Event "*** Titled Tuesday Blitz"]
[Site "Chess.com"]
[Date "2020.10.20"]
[Round "1"]
[White "grandcoach"]
[Black "Fusikk"]
[Result "0-1"]
[WhiteElo "2129"]
[BlackElo "2506"]
[TimeControl "180+1"]
[EndTime "10:07:42 PDT"]
[Termination "Fusikk won on time"]

1. e4 {[%clk 0:03:00.9]} 1... e5 {[%clk 0:02:58.9]} 2. Nf3 {[%clk 0:03:00.2]}
2... Nc6 {[%clk 0:02:59.3]} 3. d4 {[%clk 0:03:00.8]} 3... exd4 {[%clk
0:02:58.9]} 4. c3 {[%clk 0:03:01.4]} 4... Nf6 {[%clk 0:02:53.1]} 5. e5 {[%clk
0:03:00.6]} 5... Ne4 {[%clk 0:02:53.2]} 6. Qe2 {[%clk 0:03:00.1]} 6... d5 {[%clk
0:02:33.2]} 7. exd6 {[%clk 0:02:58.4]} 7... f5 {[%clk 0:02:33.2]} 8. dxc7 {[%clk
0:02:52.4]} 8... Qxc7 {[%clk 0:02:30.7]} 9. Nbd2 {[%clk 0:02:39.8]} 9... dxc3
{[%clk 0:02:25.8]} 10. Nxe4 {[%clk 0:02:37.6]} 10... fxe4 {[%clk 0:02:25.7]} 11.
Qxe4+ {[%clk 0:02:36.6]} 11... Be7 {[%clk 0:02:21.7]} 12. Bc4 {[%clk 0:02:17.2]}
12... Bd7 {[%clk 0:02:11.2]} 13. O-O {[%clk 0:02:06]} 13... O-O-O {[%clk
0:02:10.5]} 14. Bf4 {[%clk 0:02:03.1]} 14... Qa5 {[%clk 0:01:56.4]} 15. bxc3
{[%clk 0:01:33]} 15... Bf6 {[%clk 0:01:55.8]} 16. Rab1 {[%clk 0:01:18.1]} 16...
Rhe8 {[%clk 0:01:45]} 17. Qc2 {[%clk 0:00:53.8]} 17... Bf5 {[%clk 0:01:09.1]}
18. Qb3 {[%clk 0:00:45.8]} 18... b6 {[%clk 0:00:39.1]} 19. Nd4 {[%clk
0:00:33.8]} 19... Nxd4 {[%clk 0:00:32.8]} 20. cxd4 {[%clk 0:00:33.3]} 20... Bxb1
{[%clk 0:00:33]} 21. Rxb1 {[%clk 0:00:25.3]} 21... Re1+ {[%clk 0:00:32.1]} 22.
Rxe1 {[%clk 0:00:21.3]} 22... Qxe1+ {[%clk 0:00:33]} 23. Bf1 {[%clk 0:00:21.4]}
23... Kb7 {[%clk 0:00:20.3]} 24. d5 {[%clk 0:00:11.5]} 24... Bd4 {[%clk
0:00:18.3]} 25. Qf3 {[%clk 0:00:09.7]} 25... Qxf2+ {[%clk 0:00:07]} 26. Qxf2
{[%clk 0:00:08.3]} 26... Bxf2+ {[%clk 0:00:07.9]} 27. Kxf2 {[%clk 0:00:08.7]}
27... Rxd5 {[%clk 0:00:08.8]} 28. Be2 {[%clk 0:00:08.4]} 28... Rf5 {[%clk
0:00:08.8]} 29. Bf3+ {[%clk 0:00:08.3]} 29... Ka6 {[%clk 0:00:09]} 30. Be3
{[%clk 0:00:07.5]} 30... Ra5 {[%clk 0:00:08.8]} 31. Bd4 {[%clk 0:00:06.3]} 31...
Rxa2+ {[%clk 0:00:08.5]} 32. Ke3 {[%clk 0:00:06.9]} 32... g6 {[%clk 0:00:08.5]}
33. Be2+ {[%clk 0:00:06.2]} 33... Kb7 {[%clk 0:00:08.1]} 34. Bf3+ {[%clk
0:00:05.6]} 34... Kc7 {[%clk 0:00:08.3]} 35. h4 {[%clk 0:00:05.9]} 35... a5
{[%clk 0:00:07.6]} 36. Be5+ {[%clk 0:00:05.8]} 36... Kd7 {[%clk 0:00:07.5]} 37.
Bg4+ {[%clk 0:00:05.2]} 37... Kc6 {[%clk 0:00:07.7]} 38. Bf3+ {[%clk 0:00:03.3]}
38... Kc5 {[%clk 0:00:06.8]} 39. Kf4 {[%clk 0:00:03.3]} 39... a4 {[%clk
0:00:04.9]} 40. Kg5 {[%clk 0:00:01.6]} 40... Rd2 {[%clk 0:00:05.1]} 41. Kh6
{[%clk 0:00:01.1]} 41... Rd7 {[%clk 0:00:03.4]} 0-1

[Event "*** Titled Tuesday Blitz"]
[Site "Chess.com"]
[Date "2020.10.20"]
[Round "1"]
[White "crazy_but_lazy"]
[Black "Skat2704"]
[Result "1-0"]
[WhiteElo "2455"]
[BlackElo "1199"]
[TimeControl "180+1"]
[EndTime "10:07:45 PDT"]
[Termination "crazy_but_lazy won by resignation"]

1. d4 {[%clk 0:02:54.4]} 1... d5 {[%clk 0:02:59.7]} 2. c4 {[%clk 0:02:54]} 2...
e6 {[%clk 0:03:00.1]} 3. Nc3 {[%clk 0:02:53.3]} 3... Nf6 {[%clk 0:03:00.3]} 4.
cxd5 {[%clk 0:02:53.3]} 4... exd5 {[%clk 0:03:00]} 5. Bg5 {[%clk 0:02:53.6]}
5... Be7 {[%clk 0:03:00.2]} 6. e3 {[%clk 0:02:53.4]} 6... h6 {[%clk 0:03:00.3]}
7. Bh4 {[%clk 0:02:51.6]} 7... O-O {[%clk 0:03:00.3]} 8. Bd3 {[%clk 0:02:51.1]}
8... b6 {[%clk 0:03:00.1]} 9. Nf3 {[%clk 0:02:49.8]} 9... Bb7 {[%clk 0:03:00.1]}
10. O-O {[%clk 0:02:48.3]} 10... Nbd7 {[%clk 0:02:59.1]} 11. Rc1 {[%clk
0:02:47.1]} 11... c5 {[%clk 0:02:58.7]} 12. Ne5 {[%clk 0:02:44.9]} 12... Nxe5
{[%clk 0:02:55.5]} 13. dxe5 {[%clk 0:02:44.7]} 13... Ne4 {[%clk 0:02:55.6]} 14.
Bxe4 {[%clk 0:02:03.9]} 14... dxe4 {[%clk 0:02:52.9]} 15. Qxd8 {[%clk
0:01:58.9]} 15... Bxd8 {[%clk 0:02:52.3]} 16. Bg3 {[%clk 0:01:58.8]} 16... a6
{[%clk 0:02:48.8]} 17. Rfd1 {[%clk 0:01:57.5]} 17... Bc6 {[%clk 0:02:44.3]} 18.
Nd5 {[%clk 0:01:52.5]} 18... Re8 {[%clk 0:02:26.9]} 19. f4 {[%clk 0:01:41.2]}
19... h5 {[%clk 0:02:06.6]} 20. Be1 {[%clk 0:01:36.4]} 20... Bxd5 {[%clk
0:02:05]} 21. Rxd5 {[%clk 0:01:36.1]} 21... Be7 {[%clk 0:02:05.6]} 22. Rcd1
{[%clk 0:01:26.5]} 22... Red8 {[%clk 0:02:04.3]} 23. Rd7 {[%clk 0:01:24.8]}
23... Kf8 {[%clk 0:02:01]} 24. f5 {[%clk 0:01:14.5]} 24... Ke8 {[%clk
0:01:56.1]} 25. e6 {[%clk 0:01:13.2]} 25... fxe6 {[%clk 0:01:50.5]} 26. fxe6
{[%clk 0:01:13.1]} 26... Bf6 {[%clk 0:01:48.8]} 27. Bc3 {[%clk 0:00:45]} 27...
Bxc3 {[%clk 0:01:39.2]} 28. bxc3 {[%clk 0:00:43.8]} 28... Rxd7 {[%clk
0:01:37.9]} 29. Rxd7 {[%clk 0:00:44.7]} 29... Rd8 {[%clk 0:01:36.6]} 30. Rxg7
{[%clk 0:00:34]} 30... Rd2 {[%clk 0:01:30.2]} 31. Rb7 {[%clk 0:00:29.8]} 31...
b5 {[%clk 0:01:27.9]} 32. Rc7 {[%clk 0:00:25.7]} 32... c4 {[%clk 0:01:25.8]} 33.
Rc5 {[%clk 0:00:21.8]} 33... Rxa2 {[%clk 0:01:18.1]} 34. Rxh5 {[%clk 0:00:22.2]}
34... Rc2 {[%clk 0:01:17.2]} 35. Rh7 {[%clk 0:00:16.6]} 35... a5 {[%clk
0:01:14.1]} 36. Ra7 {[%clk 0:00:15.6]} 36... a4 {[%clk 0:01:13.8]} 37. h4 {[%clk
0:00:15.7]} 37... Rd2 {[%clk 0:00:51.8]} 38. h5 {[%clk 0:00:14.2]} 38... b4
{[%clk 0:00:43.1]} 39. h6 {[%clk 0:00:08.6]} 39... Rd5 {[%clk 0:00:36.9]} 40. h7
{[%clk 0:00:08.3]} 40... Rh5 {[%clk 0:00:36.8]} 41. cxb4 {[%clk 0:00:08.5]}
41... c3 {[%clk 0:00:36.1]} 42. h8=Q+ {[%clk 0:00:05.3]} 42... Rxh8 {[%clk
0:00:35.5]} 43. Ra8+ {[%clk 0:00:06.2]} 43... Ke7 {[%clk 0:00:35.7]} 44. Rxh8
{[%clk 0:00:07.1]} 44... a3 {[%clk 0:00:33.2]} 45. Kf2 {[%clk 0:00:07.5]} 45...
a2 {[%clk 0:00:31.4]} 46. Rh1 {[%clk 0:00:07.9]} 46... Kxe6 {[%clk 0:00:29.8]}
47. Ke2 {[%clk 0:00:07.6]} 47... Kd5 {[%clk 0:00:29.9]} 48. Ra1 {[%clk 0:00:08]}
48... Kc4 {[%clk 0:00:29.1]} 49. Rxa2 {[%clk 0:00:08.3]} 49... Kxb4 {[%clk
0:00:28.6]} 50. g4 {[%clk 0:00:08]} 50... Kb3 {[%clk 0:00:28.6]} 51. Ra1 {[%clk
0:00:08.4]} 51... Kb2 {[%clk 0:00:28.3]} 52. Rg1 {[%clk 0:00:09]} 52... c2
{[%clk 0:00:26]} 53. g5 {[%clk 0:00:08.7]} 1-0